Cogmind - Beta 17 @@@ ROGUE MODE // 2026.06.29 @ 12:21:03 // AFD2020/Player2 Player: The Knockback of Defeat Result: Self-destructed Performance ------------- Evolutions (5) 2500 Regions Visited (18) 3600 Robots Destroyed (87) 435 Value Destroyed (3135) 3135 Prototype IDs (30) 600 Alien Tech Used (0) 0 Bonus (4366) 4366 TOTAL SCORE: 14636 Bonus ------- High Alert Combat Kills 99 Follower Combat Kills 3725 Network Hubs Disabled 200 Aligned with FarCom 300 Met R17 at Cetus 500 Friendly Fire -458 Cogmind --------- Core Integrity 490/1000 Matter 153/300 Energy 57/300 System Corruption 1% Temperature Cool (0) Movement Hovering (58) Location -5/Factory Parts ------- > --- POWER (1) -------- Enhanced Nuclear Core > --- PROPULSION (5) --- Improved Gravmag System Improved Gravmag System Combat Gravmag System > --- UTILITY (8) ------ 0b10 Decoder Chip [Generic] 0b10 Decoder Chip [Looter] 0b10 Decoder Chip [Skirmisher] Weapon Mount Advanced Shield Generator Improved Hacking Suite Improved Hacking Suite Advanced System Shield > --- WEAPON (3) ------- Heavy Machine Gun Improved Heavy Machine Gun > --- INVENTORY (5) ---- Fusion Compressor Improved Transmission Jammer Advanced Shield Generator Makeshift Hammer Longsword +1 Peak State ------------ > --- POWER ------------ Light Angular Momentum Engine > --- PROPULSION ------- Gravmag System Gravmag System Gravmag System > --- UTILITY ---------- 0b10 Decoder Chip [Generic] 0b10 Decoder Chip [Looter] 0b10 Decoder Chip [Skirmisher] Centrium Medium Armor Plating Improved Hacking Suite Improved Hacking Suite Improved System Shield Improved System Shield > --- WEAPON ----------- AWS/Autocannon > --- INVENTORY -------- Advanced Weight Redist. System Makeshift Hammer Chainsword Phasing Sabre Longsword +1 [Rating: 93] Favorites ----------- Power Light Fission Core Engine Light Angular Momentum Engine Power Core Light Fission Core Propulsion Aerolev Unit Treads Light Treads Leg Aluminum Leg Hover Unit Aerolev Unit Flight Unit Flight Unit Utility 0b10 Decoder Chip [Looter] Device Advanced Weight Redist. System Storage Small Storage Unit Processor 0b10 Decoder Chip [Looter] Hackware Improved Hacking Suite Protection Improved Utility Shielding Weapon Mini Grenade Launcher Energy Gun Backup Laser I Ballistic Gun Heavy Machine Gun Ballistic Cannon AWS/Autocannon Launcher Mini Grenade Launcher Special Weapon Mining Laser Impact Weapon Makeshift Hammer Slashing Weapon Longsword +1 Piercing Weapon CR-A16's Pointy Stick Build | -11 -10 -10 -9 -9 -9 -8 -8 -7 -7 -7 -7 -6 -6 -6 -6 -6 -6 -5 ------- Run | Yrd Mat Min Mat Min Exi Min Mat Fac Low Low Zio Pro Fac Ext Cet Arc Hub Fac Slots Evolved 10 | . . . 2 . . . 2 2 . . . . 2 . . . . 2 Power . | . . . . . . . . . . . . . . . . . . . Propulsion 3 | . . . . . . . . 1 . . . . . . . . . 2 Utility 6 | . . . 1 . . . 2 1 . . . . 2 . . . . . Weapon 1 | . . . 1 . . . . . . . . . . . . . . . Parts Attached 102 | 1 11 4 4 5 1 1 5 12 2 3 7 . 6 2 1 9 6 22 Power 11 | . 1 1 . . . . 1 1 . . 1 . . 1 . 1 1 3 Engine 7 | . 1 1 . . . . 1 . . . . . . 1 . 1 1 1 Core 4 | . . . . . . . . 1 . . 1 . . . . . . 2 Reactor . | . . . . . . . . . . . . . . . . . . . Propulsion 24 | . 4 1 1 1 . . 2 1 . . . . 2 . . 3 1 8 Treads 2 | . 2 . . . . . . . . . . . . . . . . . Leg . | . . . . . . . . . . . . . . . . . . . Wheel . | . . . . . . . . . . . . . . . . . . . Hover 15 | . . . . . . . 2 1 . . . . 1 . . 3 1 7 Flight 7 | . 2 1 1 1 . . . . . . . . 1 . . . . 1 Utility 41 | 1 3 . 3 2 . . 2 8 . 2 4 . 4 . 1 5 . 6 Device 16 | 1 2 . . 2 . . 1 2 . 1 . . 2 . . . . 5 Storage . | . . . . . . . . . . . . . . . . . . . Processor 9 | . 1 . 1 . . . 1 3 . . 2 . 1 . . . . . Hackware 9 | . . . 1 . . . . 1 . . 1 . . . . 5 . 1 Protection 7 | . . . 1 . . . . 2 . 1 1 . 1 . 1 . . . Artifact . | . . . . . . . . . . . . . . . . . . . Weapon 26 | . 3 2 . 2 1 1 . 2 2 1 2 . . 1 . . 4 5 Energy Gun 2 | . 1 . . . . 1 . . . . . . . . . . . . Energy Cannon . | . . . . . . . . . . . . . . . . . . . Ballistic Gun 9 | . . 1 . . . . . 1 . . . . . . . . 2 5 Ballistic Cannon 2 | . 1 . . . . . . . . . . . . . . . 1 . Launcher 4 | . . 1 . 1 . . . 1 . 1 . . . . . . . . Special Weapon 1 | . 1 . . . . . . . . . . . . . . . . . Impact Weapon 2 | . . . . 1 . . . . . . 1 . . . . . . . Slashing Weapon 5 | . . . . . 1 . . . 2 . . . . 1 . . 1 . Piercing Weapon 1 | . . . . . . . . . . . 1 . . . . . . . Special Melee Weapon . | . . . . . . . . . . . . . . . . . . . Unidentified Prototypes 6 | . . . . . . . 1 1 . . . . 1 . 1 . . 2 Parts Lost 11 | . . 2 . . . . . . . 1 . . . . . . 4 4 Power 3 | . . 1 . . . . . . . . . . . . . . 1 1 Propulsion 3 | . . . . . . . . . . . . . . . . . 1 2 Utility 2 | . . . . . . . . . . 1 . . . . . . 1 . Weapon 3 | . . 1 . . . . . . . . . . . . . . 1 1 Highest Loss Streak 3 | . . 2 . . . . . . . 1 . . . . . . 3 3 To Critical Strikes . | . . . . . . . . . . . . . . . . . . . Average Backups 3 | 6 3 3 4 4 3 3 2 2 2 2 3 3 2 2 2 2 2 4 Power . | 1 . . . . . . . . . . . . . . . . . . Propulsion . | 4 1 2 2 1 . . . . . . . . . . . . . . Utility . | . . . . . 1 1 . 1 1 1 1 1 . . . . . 1 Weapon 1 | 1 . 1 1 2 2 2 1 1 1 1 1 2 2 2 2 2 2 1 Tool/Special . | . . . . . . . . . . . . . . . . . . . Unused Backups 19 | . 6 3 . 1 1 . . 1 1 . 2 . . . . . . 4 Power 3 | . 2 . . . . . . . . . . . . . . . . 1 Propulsion 3 | . . 2 . . 1 . . . . . . . . . . . . . Utility 9 | . 2 . . . . . . 1 1 . 2 . . . . . . 3 Weapon 4 | . 2 1 . 1 . . . . . . . . . . . . . . Tool/Special . | . . . . . . . . . . . . . . . . . . . Average Slot Usage (%) 87 | . 89 89 79 86 79 77 73 77 81 81 81 100 96 93 93 93 85 92 Engine 3 | . 11 10 11 11 11 11 9 3 . . . . . 1 6 6 5 1 Core 2 | . . . . . . . . 3 7 5 3 7 6 4 . . . 2 Hover 16 | . . . . . . . 9 23 23 23 23 23 19 13 13 14 19 25 Flight 4 | . 22 28 21 22 22 22 9 . . . . . . . . . . . Device 13 | . 17 14 3 2 11 11 14 9 23 20 12 7 16 20 20 12 . 10 Processor 12 | . 5 14 11 7 . . 6 5 . . 5 15 18 20 20 20 20 17 Hackware 7 | . . . 10 11 11 11 9 6 . . 3 7 1 . . 9 26 17 Protection 8 | . . . 6 8 . . . 14 15 12 12 15 13 13 13 10 5 . Energy Gun 1 | . 12 9 . . . 2 5 . . . . . . . . . . 1 Ballistic Gun 2 | . . 2 11 11 2 . . . . . . . . . . . 1 10 Launcher 5 | . . 4 4 9 11 11 9 6 7 12 7 7 6 5 . . . . Impact Weapon 2 | . . . . 3 2 . . . . . 4 7 6 6 6 5 1 . Slashing Weapon 1 | . . . . . 8 8 2 1 4 5 . . . . 6 6 1 . Piercing Weapon 2 | . . . . . . . . . . . 6 7 6 6 6 6 . . Peak Build Rating 93 | 8 9 7 12 24 33 32 39 53 57 52 55 55 64 69 74 81 93 93 Average Rating 52 | 6 6 6 9 16 30 30 33 44 49 44 43 55 61 64 72 75 70 78 On Entrance 38 | 6 8 7 7 12 24 32 27 34 46 50 27 55 55 64 69 74 79 53 Avg Prop Armor Cover (%) 9 | . 29 . . . . . . . . 9 8 . . . . . . 7 Naked Turns . | . . . . . . . . . . . . . . . . . . . Heaviest Build 76 | 14 8 8 8 12 10 10 14 26 27 28 21 20 26 31 34 34 76 32 Greatest Support 55 | 20 8 8 8 10 10 10 16 33 33 33 24 24 37 37 37 38 27 55 Greatest Overweight (x) 2 | . . . . 1 . . 1 1 . . . . 1 . . 1 2 1 Average Overweight (x) . | . . . . . . . . . . . . . . . . . . . Largest Inventory Capacity 8 | 8 8 5 5 5 5 5 5 5 5 5 5 5 5 5 5 5 5 5 Average Capacity 5 | 8 5 5 5 5 5 5 5 5 5 5 5 5 5 5 5 5 5 5 Most Carried 8 | 8 7 4 5 5 5 5 5 5 5 5 5 5 5 5 4 5 5 5 Average Carried 4 | 6 3 3 4 4 4 5 4 4 4 4 4 5 4 4 4 4 4 4 Final Capacity 8 | 8 5 5 5 5 5 5 5 5 5 5 5 5 5 5 5 5 5 5 Final Carried 8 | 8 3 4 5 5 5 5 5 5 5 5 5 5 4 4 4 5 2 5 Scrap Suit Usage (%) 1 | . . . . 22 20 . . . . . . . . . . . . . Class Distribution -------------------- 29% | Mutant 23% | Derelict-Gladiator 15% | Hacker-Mutant 10% | Derelict-Mutant 9% | Hacker-Gunner 8% | Scavenger-Mutant Dominant Class ---------------- Scavenger-Mutant | -10/Materials Mutant | -10/Mines Scavenger-Mutant | -9/Materials Scavenger-Mutant | -9/Mines Mutant | -9/Exiles Mutant | -8/Mines Mutant | -8/Materials Mutant | -7/Factory Mutant | -7/Lower Caves Mutant | -7/Lower Caves Derelict-Mutant | -7/Zion Derelict-Mutant | -6/Proximity Caves Derelict-Gladiator | -6/Factory Derelict-Gladiator | -6/Extension Derelict-Gladiator | -6/Cetus Derelict-Gladiator | -6/Archives Hacker-Mutant | -6/Hub_04(d) Hacker-Gunner | -5/Factory Resources | -11 -10 -10 -9 -9 -9 -8 -8 -7 -7 -7 -7 -6 -6 -6 -6 -6 -6 -5 ----------- Run | Yrd Mat Min Mat Min Exi Min Mat Fac Low Low Zio Pro Fac Ext Cet Arc Hub Fac Matter Collected 3117 | 246 34 24 192 100 . 27 55 317 154 41 50 27 63 140 20 100 130 1397 Remotely . | . . . . . . . . . . . . . . . . . . . Salvage Created 3343 | 120 65 27 64 73 . 180 190 217 80 . 60 27 24 282 . 241 671 1022 Parts 192 | 7 6 8 9 4 . 8 17 19 2 . . 3 . 8 . 22 27 52 Haulers Intercepted 4 | . . . . . . . 2 . . . . . . . . . . 2 Recyclers Shooed . | . . . . . . . . . . . . . . . . . . . Parts Field Recycled . | . . . . . . . . . . . . . . . . . . . Retrieved Matter . | . . . . . . . . . . . . . . . . . . . Parts Self-Destructed 8 | . . . . . . . . . 4 2 . 2 . . . . . . Prevented . | . . . . . . . . . . . . . . . . . . . Parts Restored . | . . . . . . . . . . . . . . . . . . . Kills | -11 -10 -10 -9 -9 -9 -8 -8 -7 -7 -7 -7 -6 -6 -6 -6 -6 -6 -5 ------- Run | Yrd Mat Min Mat Min Exi Min Mat Fac Low Low Zio Pro Fac Ext Cet Arc Hub Fac Combat Hostiles Destroyed 50 | . 3 4 1 2 . 5 . 3 2 . . 3 . 5 . . 13 9 Guns 11 | . 1 . 1 . . . . . . . . . . . . . . 9 Cannons 14 | . 1 . . . . . . . . . . . . . . . 13 . AOE 25 | . 1 4 . 2 . 5 . 3 2 . . 3 . 5 . . . . Classes Destroyed 16 | 2 3 1 2 . . 1 2 . . . . . . 2 . . . 3 Worker 4 | . . . . . . 2 . . . . . . . . . . 1 1 Builder 7 | . . . . . . . 2 2 . . . . 1 . . . . 2 Tunneler 4 | 3 . . . . . 1 . . . . . . . . . . . . Hauler 4 | . . . . . . . 2 . . . . . . . . . . 2 Recycler 5 | 1 . . . . . . 1 . . . . . . 1 . . 1 1 Mechanic 1 | . . . . . . . . . . . . . . . . . . 1 Operator 10 | . . . 1 . . . . 2 . . . . . . . 7 . . Watcher 3 | . 1 . . . . . . . . . . . . . . . 1 1 Swarmer 10 | . 2 3 . . . 2 . . . . . 3 . . . . . . Cutter 2 | . . . . . . . . . . . . . . . . . . 2 Grunt 20 | . 1 . . 2 . 3 . 3 2 . . . . . . . 7 2 Duelist 2 | . . . . . . . . . . . . . . . . . . 2 Sentry 5 | . . . 1 . . . . . . . . . . 1 . . 1 2 Hunter 8 | . . . . . . . . . . . . . . 2 . . 5 1 Behemoth 2 | . . . . . . . . . . . . . . 2 . . . . Assembled 1 | . . 1 . . . . . . . . . . . . . . . . Best Kill Streak 8 | 2 3 4 1 2 . 2 2 3 2 . . 3 1 4 . 6 8 4 Combat Bots Only 7 | . 2 4 1 2 . 2 . 2 2 . . 3 . 4 . . 7 3 Max Kills in Single Turn 3 | 1 1 3 1 2 . 1 1 1 2 . . 2 1 2 . 1 1 1 Gunslinging . | . . . . . . . . . . . . . . . . . . . Exploded 3 | . 1 3 . 2 . 1 . 1 2 . . 2 . 2 . . . . Melee . | . . . . . . . . . . . . . . . . . . . Uniques/NPCs Destroyed . | . . . . . . . . . . . . . . . . . . . Combat | -11 -10 -10 -9 -9 -9 -8 -8 -7 -7 -7 -7 -6 -6 -6 -6 -6 -6 -5 -------- Run | Yrd Mat Min Mat Min Exi Min Mat Fac Low Low Zio Pro Fac Ext Cet Arc Hub Fac Hostile Shots Fired 253 | . 7 2 4 3 . 5 . 12 1 12 . 7 . 68 8 2 59 63 Missed 101 | . 6 2 3 2 . 1 . 9 . 4 . 4 . 27 2 2 17 22 Hits 152 | . 1 . 1 1 . 4 . 3 1 8 . 3 . 41 6 . 42 41 Melee 12 | . . . . . . . . . . 8 . . . . . . . 4 Projectile 140 | . 1 . 1 1 . 4 . 3 1 . . 3 . 41 6 . 42 37 AOE 7 | . . 5 . . . . . . . . . . . . . . . 2 Critical Strikes 9 | . . . . . . . . . . . . . . . 1 . 2 6 Damage Taken 2744 | . 9 150 14 14 . 94 . 23 19 18 . 43 . 356 116 . 1098 790 Core 382 | . . 89 . . . 18 . 5 . . . 15 . 79 19 . 38 119 Absorbed by Shields 351 | . . . . . . . . . . . . . . 84 40 . . 227 Redirected to Shielding 120 | . . . . . . . . . . . . . . 120 . . . . Core Remaining (%) 67 | 100 . 12 . . . 74 94 . . . . 80 . . . . 46 . Volleys Fired 140 | 9 18 4 4 6 . 6 2 9 1 . . 2 . 10 . . 5 64 Largest 3 | 2 1 1 1 1 . 1 1 1 1 . . 1 . 1 . . 2 3 Hottest 100 | 40 100 40 30 30 . 30 45 30 39 . . 30 . 30 . . 56 95 Shots Fired 272 | 18 18 4 4 6 . 6 2 9 1 . . 2 . 10 . . 37 155 Gun 206 | 18 7 2 3 5 . . 2 5 . . . . . . . . 9 155 Cannon 36 | . 8 . . . . . . . . . . . . . . . 28 . Launcher 27 | . . 2 1 1 . 6 . 4 1 . . 2 . 10 . . . . Special 3 | . 3 . . . . . . . . . . . . . . . . . Kinetic 231 | 18 8 . 3 5 . . . 5 . . . . . . . . 37 155 Thermal 3 | . 3 . . . . . . . . . . . . . . . . . Explosive 27 | . . 2 1 1 . 6 . 4 1 . . 2 . 10 . . . . Electromagnetic 11 | . 7 2 . . . . 2 . . . . . . . . . . . Robot Hit Streak 21 | 10 14 1 2 3 . 3 4 4 . . . . . 4 . . 14 21 Robot Miss Streak 5 | 1 3 2 1 3 . . 1 1 . . . . . . . . 1 5 Penetration Max 3 | . . . . . . . . . . . . . . . . . . 3 Secondary Targets 2 | . . . . . . . . . . . . . . . . . . 2 Max Gunslinging Chain 1 | . . . . . . . . . . . . . . . . . . 1 Autonomous 28 | . . . . . . . . . . . . . . . . . 28 . Shots Hit Robots 186 | 14 10 1 2 3 1 5 10 9 . . 1 . 1 2 1 14 27 85 Core Hits 132 | 8 4 6 3 3 . 11 5 14 3 . 1 3 . 16 . 5 14 36 Critical Kills 4 | . . . . . . . . . . . . . . . . . . 4 Critical Parts Destroyed 10 | . . . . . . . . . . . . . . . . . . 10 Critical Strikes 19 | . . . . . . . . . . . . . . . . 2 1 16 Destroy 16 | . . . . . . . . . . . . . . . . . . 16 Blast 1 | . . . . . . . . . . . . . . . . . 1 . Sever 2 | . . . . . . . . . . . . . . . . 2 . . Melee Attacks 75 | . . . . . 1 4 11 7 . 1 2 . 7 3 3 18 6 12 Impact 27 | . . . . . . . . . . . 1 . 7 3 1 2 5 8 Slashing 46 | . . . . . 1 4 11 7 . 1 . . . . 2 15 1 4 Piercing 2 | . . . . . . . . . . . 1 . . . . 1 . . Sneak Attacks 24 | . . . . . 1 3 4 2 . . . . 1 1 . 8 2 2 Combat Hostiles . | . . . . . . . . . . . . . . . . . . . Follow-up Attacks 2 | . . . . . . . . . . . . . . . 1 1 . . Damage Inflicted 9845 | 139 234 199 38 148 100 994 572 792 216 . 72 268 102 882 40 1195 2132 1722 Guns 1907 | 139 64 10 23 14 . . 28 69 . . . . . . . . 12 1548 Cannons 2039 | . 89 . . . . . . . . . . . . . . . 1950 . Explosions 2786 | . 81 189 15 134 . 632 . 454 216 . . 268 . 797 . . . . Melee 3110 | . . . . . 100 362 544 269 . . 72 . 102 85 40 1195 167 174 Ramming 3 | . . . . . . . . . . . . . . . . . 3 . Kinetic 3844 | 139 89 . 23 14 . . . 69 . . . . . . . . 1962 1548 Thermal 175 | . 81 . . . . 94 . . . . . . . . . . . . Explosive 2611 | . . 189 15 134 . 538 . 454 216 . . 268 . 797 . . . . Electromagnetic 102 | . 64 10 . . . . 28 . . . . . . . . . . . Impact 502 | . . . . . . . . . . . . . 102 85 40 108 167 . Slashing 2536 | . . . . . 100 362 544 269 . . . . . . . 1087 . 174 Piercing 72 | . . . . . . . . . . . 72 . . . . . . . Highest Corruption 11 | . . . . . . . . . . . . . . . . . 11 1 Average Corruption 1 | . . . . . . . . . . . . . . . . . 1 1 Corruption Purged . | . . . . . . . . . . . . . . . . . . . Corruption Blocked . | . . . . . . . . . . . . . . . . . . . Effects 8 | . . . . . . . . . . . . . . . . . 5 3 Message Errors 1 | . . . . . . . . . . . . . . . . . . 1 Matter Fused 1 | . . . . . . . . . . . . . . . . . 1 . Data Loss (minor) 1 | . . . . . . . . . . . . . . . . . 1 . Data Loss (major) 3 | . . . . . . . . . . . . . . . . . 2 1 Alerts 1 | . . . . . . . . . . . . . . . . . . 1 Weapon Failures 1 | . . . . . . . . . . . . . . . . . 1 . Overload Shots . | . . . . . . . . . . . . . . . . . . . Overflow Damage 947 | . . . . . . 114 56 30 . . . 5 82 29 . 423 148 60 Projectiles 46 | . . . . . . . . . . . . . . . . . 46 . Explosions 54 | . . . . . . 35 . . . . . 5 . 14 . . . . Melee 847 | . . . . . . 79 56 30 . . . . 82 15 . 423 102 60 Knockbacks 9 | . . . . . . . . . . . . . 1 . . 1 7 . Impact 2 | . . . . . . . . . . . . . 1 . . 1 . . Kinetic 7 | . . . . . . . . . . . . . . . . . 7 . Secondary . | . . . . . . . . . . . . . . . . . . . Self-Inflicted Damage 37 | . . . . . . 36 . . . . . . . . . . 1 . Shots 2 | . . . . . . 2 . . . . . . . . . . . . Rammed 1 | . . . . . . . . . . . . . . . . . 1 . Targets Rammed 1 | . . . . . . . . . . . . . . . . . 1 . Kicked . | . . . . . . . . . . . . . . . . . . . Crushed . | . . . . . . . . . . . . . . . . . . . Highest Temperature 227 | . 58 . 4 5 . 19 . 10 3 . . . . 8 . . . 227 Average Temperature 48 | . 24 . 3 2 . 9 . 6 3 . . . . 6 . . . 55 Received Heat Transfer 419 | . . . 9 9 . 27 . 9 9 . . . . 96 6 . 153 101 Effects 1 | . . . . . . . . . . . . . . . . . . 1 Energy Bleed 1 | . . . . . . . . . . . . . . . . . . 1 Siege Activations . | . . . . . . . . . . . . . . . . . . . Martial Activations . | . . . . . . . . . . . . . . . . . . . Shielding Activations . | . . . . . . . . . . . . . . . . . . . Robots Disrupted . | . . . . . . . . . . . . . . . . . . . Combat Hostiles . | . . . . . . . . . . . . . . . . . . . Robots Corrupted 3 | . . . . . . . . . . . . . 1 1 . 1 . . Combat Hostiles . | . . . . . . . . . . . . . . . . . . . Parts Fried 7 | . . . . . . . . . . . . . 3 2 . 1 1 . Impact Corruptions 10 | . . . . . . . . . . . . . 3 1 . 4 2 . Robots Melted . | . . . . . . . . . . . . . . . . . . . Combat Hostiles . | . . . . . . . . . . . . . . . . . . . Parts Melted . | . . . . . . . . . . . . . . . . . . . Heat Transferred 200 | . 100 . . . . 100 . . . . . . . . . . . . Parts Sabotaged 3 | . . . . . . . . . . . . . . . . . . 3 Parts Stolen 5 | . . . . . . . . . . 5 . . . . . . . . Parts Stripped . | . . . . . . . . . . . . . . . . . . . Power Chain Reactions 1 | . 1 . . . . . . . . . . . . . . . . . Alert | -11 -10 -10 -9 -9 -9 -8 -8 -7 -7 -7 -7 -6 -6 -6 -6 -6 -6 -5 ------- Run | Yrd Mat Min Mat Min Exi Min Mat Fac Low Low Zio Pro Fac Ext Cet Arc Hub Fac Maximum Alert Level 3 | . . . . 1 . 1 1 2 . . . . . 1 1 . 2 3 Low Security (%) 65 | 100 100 100 100 40 . 91 97 17 . . . . 100 60 69 100 29 53 Level 1 21 | . . . . 59 . 8 2 5 . . . . . 39 30 . 65 19 Level 2 12 | . . . . . . . . 77 . . . . . . . . 5 22 Level 3 . | . . . . . . . . . . . . . . . . . . 3 Level 4 . | . . . . . . . . . . . . . . . . . . . Level 5 . | . . . . . . . . . . . . . . . . . . . High Security . | . . . . . . . . . . . . . . . . . . . Max Security . | . . . . . . . . . . . . . . . . . . . Peak Influence 809 | 10 150 99 132 271 . 322 201 546 . . . . 153 266 253 115 428 809 Initial 149 | . . 26 30 47 . . 125 72 . . . . 42 9 120 93 15 149 Average 178 | 3 86 33 83 182 . 76 156 396 . . . . 79 130 183 72 270 251 Influence Increases 6286 | 20 209 171 192 284 . 524 196 708 112 . 5 87 281 756 263 192 776 1510 Destroy 0b10 Robot/C 2960 | . 100 100 80 100 . 280 60 240 80 . . 60 140 420 160 80 400 660 Destroy 0b10 Robot/NC 305 | 20 5 . 5 . . 20 30 40 . . 5 . 5 10 10 40 40 75 Destroy Leader 564 | . 22 20 30 30 . 50 26 60 10 . . 10 30 40 . . 84 152 Allied During Kill 979 | . 30 29 27 24 . 107 10 64 22 . . 17 30 188 72 30 109 220 Successful Hack 120 | . 14 . 25 . . . 9 35 . . . . 7 . . . 14 16 Select Force Hacks 130 | . 30 . . 50 . . . . . . . . . . . . 50 . Disable Machine 435 | . . 15 15 30 . 15 15 15 . . . . . 15 . 30 30 255 Anti-Garrison Action 200 | . . . . . . . . 200 . . . . . . . . . . Destroy Structure 308 | . 8 7 10 5 . 52 1 24 . . . . 9 38 21 12 19 102 Partial Spotted 165 | . . . . . . . 45 30 . . . . 45 . . . 15 30 Lose Combat Pursuer 120 | . . . . 45 . . . . . . . . 15 45 . . 15 . Influence Decreases 5615 | 20 140 161 149 235 171 202 357 469 420 92 5 20 327 562 245 380 516 1144 Entered New Map 1249 | . . 43 49 75 171 . 197 89 148 19 . . 25 12 95 140 30 156 Time Decay 3217 | 20 140 81 100 160 . 199 150 350 262 73 5 20 302 360 100 170 206 519 Lost Part 637 | . . 37 . . . . 10 20 . . . . . 10 10 30 280 240 Lost Ally 403 | . . . . . . 3 . 10 10 . . . . 180 40 40 . 120 Purge Threat 109 | . . . . . . . . . . . . . . . . . . 109 Squads Dispatched 32 | . 1 . . 1 . 2 . 7 . . . . 1 1 . . 6 13 Investigation 8 | . 1 . . 1 . 1 . 2 . . . . . 1 . . 1 1 Extermination 5 | . . . . . . . . 1 . . . . 1 . . . 1 2 Reinforcement 15 | . . . . . . 1 . 2 . . . . . . . . 4 8 Assault 3 | . . . . . . . . 1 . . . . . . . . . 2 Garrison 1 | . . . . . . . . 1 . . . . . . . . . . Intercept . | . . . . . . . . . . . . . . . . . . . Searches Triggered . | . . . . . . . . . . . . . . . . . . . Construction Impeded 5 | . . . . . . 1 . 1 . . . . . . . . 1 2 Haulers Reinforced 3 | . . . . . . . . . . . . . . . . . 2 1 Active Scanning Responses . | . . . . . . . . . . . . . . . . . . . Cargo Convoy Interrupts 1 | . . . . . . . . . . . . . . . . . . 1 Stealth | -11 -10 -10 -9 -9 -9 -8 -8 -7 -7 -7 -7 -6 -6 -6 -6 -6 -6 -5 --------- Run | Yrd Mat Min Mat Min Exi Min Mat Fac Low Low Zio Pro Fac Ext Cet Arc Hub Fac Distress Signals 14 | . 1 1 . . . . . . . . . . . 2 2 . 3 5 Communications Jammed . | . . . . . . . . . . . . . . . . . . . Distress Signals . | . . . . . . . . . . . . . . . . . . . Times Spotted 190 | . 7 8 6 8 1 11 5 12 4 4 . 3 6 20 9 6 30 50 Peak Tracking Total 17 | . 3 3 3 6 2 3 3 4 4 4 . 3 2 6 5 2 7 17 Tactical Retreats 6 | . . . . 2 . . . . . . . . 1 2 . . 1 . Traps | -11 -10 -10 -9 -9 -9 -8 -8 -7 -7 -7 -7 -6 -6 -6 -6 -6 -6 -5 ------- Run | Yrd Mat Min Mat Min Exi Min Mat Fac Low Low Zio Pro Fac Ext Cet Arc Hub Fac Traps Triggered 3 | . . . . . . . . . . . . . . 1 . . 1 1 Indirectly . | . . . . . . . . . . . . . . . . . . . Trap Hack Attempts . | . . . . . . . . . . . . . . . . . . . Triggered . | . . . . . . . . . . . . . . . . . . . Disarmed . | . . . . . . . . . . . . . . . . . . . Reprogrammed . | . . . . . . . . . . . . . . . . . . . Reused . | . . . . . . . . . . . . . . . . . . . Traps Extracted 2 | . . . . 2 . . . . . . . . . . . . . . Installed . | . . . . . . . . . . . . . . . . . . . Triggered . | . . . . . . . . . . . . . . . . . . . Most Traps Carried 2 | . . . . 2 2 2 2 . . . . . . . . . . . Machines | -11 -10 -10 -9 -9 -9 -8 -8 -7 -7 -7 -7 -6 -6 -6 -6 -6 -6 -5 ---------- Run | Yrd Mat Min Mat Min Exi Min Mat Fac Low Low Zio Pro Fac Ext Cet Arc Hub Fac Machines Disabled 29 | . . 1 1 2 . 1 1 1 . . . . . 1 . 2 2 17 Max in Single Turn 2 | . . 1 . 2 . 1 . 1 . . . . . 1 . . 1 1 Garrison Access 4 | . . . . . . . . 2 . . . . . . . . . 2 Network Hub 1 | . . . . . . . . . . . . . . . . . 1 . Machines Repaired . | . . . . . . . . . . . . . . . . . . . Machines Dismantled . | . . . . . . . . . . . . . . . . . . . Machines Sabotaged 2 | . . . . 1 . . . . . . . . . . . . 1 . Overloaded Fab Kills . | . . . . . . . . . . . . . . . . . . . Hacking | -11 -10 -10 -9 -9 -9 -8 -8 -7 -7 -7 -7 -6 -6 -6 -6 -6 -6 -5 --------- Run | Yrd Mat Min Mat Min Exi Min Mat Fac Low Low Zio Pro Fac Ext Cet Arc Hub Fac Machines Accessed 43 | . 5 . 4 2 2 1 5 7 1 . . . 1 1 . . 3 11 Terminals 22 | . 3 . 3 1 . 1 3 4 . . . . . 1 . . 3 3 Fabricators 4 | . . . . . . . . 1 . . . . 1 . . . . 2 Repair Stations 3 | . . . 1 . . . 1 . . . . . . . . . . 1 Recycling Units 4 | . 2 . . . . . . . . . . . . . . . . 2 Scanalyzers 2 | . . . . . . . 1 . . . . . . . . . . 1 Garrison Access 4 | . . . . . . . . 2 . . . . . . . . . 2 Total Hacks 83 | . 7 . 9 3 2 2 9 14 1 . . . 2 1 . . 6 27 Successful 42 | . 3 . 4 2 2 . 6 6 1 . . . 1 1 . . 2 14 Failed 41 | . 4 . 5 1 . 2 3 8 . . . . 1 . . . 4 13 Catastrophic 6 | . 1 . . . . . . 2 . . . . 1 . . . 1 1 Database Lockouts . | . . . . . . . . . . . . . . . . . . . Manual 43 | . 7 . 7 2 1 2 2 6 . . . . 1 1 . . 5 9 Terminals 46 | . 4 . 8 2 . 2 5 8 . . . . . 1 . . 6 10 Fabricators 11 | . . . . . . . . 2 . . . . 2 . . . . 7 Repair Stations 6 | . . . 1 . . . 3 . . . . . . . . . . 2 Recycling Units 7 | . 3 . . . . . . . . . . . . . . . . 4 Scanalyzers 3 | . . . . . . . 1 . . . . . . . . . . 2 Garrison Access 6 | . . . . . . . . 4 . . . . . . . . . 2 Terminal Hacks 19 | . 2 . 3 1 2 . 3 1 1 . . . . 1 . . 1 4 Record 1 | . . . . . 1 . . . . . . . . . . . . . Part Schematic 1 | . 1 . . . . . . . . . . . . . . . . . Open Door 2 | . . . . 1 . . . . 1 . . . . . . . . . Branch Access Points 3 | . . . 1 . . . . 1 . . . . . . . . . 1 Recycling Unit Index 2 | . 1 . 1 . . . . . . . . . . . . . . . Garrison Index 1 | . . . . . . . . . . . . . . . . . 1 . Alert Level 2 | . . . . . . . . . . . . . . 1 . . . 1 Unreport Threat 2 | . . . . . . . . . . . . . . . . . . 2 Hauler Manifests 1 | . . . . . . . 1 . . . . . . . . . . . Zone Layout 3 | . . . 1 . . . 2 . . . . . . . . . . . Proto ID Catalog 1 | . . . . . 1 . . . . . . . . . . . . . Fabricator Hacks 2 | . . . . . . . . 1 . . . . 1 . . . . . Build 2 | . . . . . . . . 1 . . . . 1 . . . . . Repair Station Hacks 3 | . . . 1 . . . 1 . . . . . . . . . . 1 Refit 3 | . . . 1 . . . 1 . . . . . . . . . . 1 Recycling Unit Hacks 3 | . . . . . . . . . . . . . . . . . . 3 Process 1 | . . . . . . . . . . . . . . . . . . 1 Retrieve Matter 1 | . . . . . . . . . . . . . . . . . . 1 Retrieve Components 1 | . . . . . . . . . . . . . . . . . . 1 Scanalyzer 2 | . . . . . . . 1 . . . . . . . . . . 1 Retrieve Study 2 | . . . . . . . 1 . . . . . . . . . . 1 Garrison Access Hacks 3 | . . . . . . . . 1 . . . . . . . . . 2 Seal Access 3 | . . . . . . . . 1 . . . . . . . . . 2 Unauthorized Hacks 10 | . 1 . . 1 . . 1 3 . . . . . . . . 1 3 Terminals 5 | . . . . 1 . . 1 2 . . . . . . . . 1 . Assimilate 1 | . . . . . . . 1 . . . . . . . . . . . Botnet 1 | . . . . . . . . 1 . . . . . . . . . . Operators 1 | . . . . . . . . 1 . . . . . . . . . . Sabotage 2 | . . . . 1 . . . . . . . . . . . . 1 . Fabricators 3 | . . . . . . . . . . . . . . . . . . 3 Liberate 1 | . . . . . . . . . . . . . . . . . . 1 Fabnet 1 | . . . . . . . . . . . . . . . . . . 1 Haulers 1 | . . . . . . . . . . . . . . . . . . 1 Repair Stations . | . . . . . . . . . . . . . . . . . . . Recycling Units 1 | . 1 . . . . . . . . . . . . . . . . . Tunnel 1 | . 1 . . . . . . . . . . . . . . . . . Scanalyzers . | . . . . . . . . . . . . . . . . . . . Garrison Access 1 | . . . . . . . . 1 . . . . . . . . . . Jam 1 | . . . . . . . . 1 . . . . . . . . . . Data Cores Recovered 2 | . . . 1 . . . . 1 . . . . . . . . . . Used 1 | . . . 1 . . . . . . . . . . . . . . . Hacking Detections 20 | . 3 . 4 . . 1 3 5 . . . . 1 . . . 1 2 Full Trace Events 2 | . . . . . . 1 . 1 . . . . . . . . . . Feedback Events . | . . . . . . . . . . . . . . . . . . . Feedback Blocked . | . . . . . . . . . . . . . . . . . . . Robot Schematics Acquired 3 | . . . . . . . . . . . 3 . . . . . . . Robots Built 4 | . . . . . . . . 1 . . . . 3 . . . . . Authchips . | . . . . . . . . . . . . . . . . . . . Time 210 | . . . . . . . . 58 . . . . 152 . . . . . Total Robot Build Rating 18 | . . . . . . . . 3 . . . . 15 . . . . . Part Schematics Acquired 17 | . 1 . . . . . . . . . 16 . . . . . . . Parts Built . | . . . . . . . . . . . . . . . . . . . Authchips . | . . . . . . . . . . . . . . . . . . . Time . | . . . . . . . . . . . . . . . . . . . Total Part Build Rating . | . . . . . . . . . . . . . . . . . . . Part Studies Acquired 2 | . . . . . . . 1 . . . . . . . . . . 1 Parts Repaired . | . . . . . . . . . . . . . . . . . . . Time . | . . . . . . . . . . . . . . . . . . . Parts Recycled . | . . . . . . . . . . . . . . . . . . . Recycled Matter 119 | . . . . . . . . . . . . . . . . . . 119 Retrieved Matter 119 | . . . . . . . . . . . . . . . . . . 119 Retrieved Components 1 | . . . . . . . . . . . . . . . . . . 1 Parts Scanalyzed . | . . . . . . . . . . . . . . . . . . . Part Schematics Acquired . | . . . . . . . . . . . . . . . . . . . Parts Damaged . | . . . . . . . . . . . . . . . . . . . Bothacking | -11 -10 -10 -9 -9 -9 -8 -8 -7 -7 -7 -7 -6 -6 -6 -6 -6 -6 -5 ------------ Run | Yrd Mat Min Mat Min Exi Min Mat Fac Low Low Zio Pro Fac Ext Cet Arc Hub Fac Used RIF Installer . | . . . . . . . . . . . . . . . . . . . Robots Hacked . | . . . . . . . . . . . . . . . . . . . Non-combat . | . . . . . . . . . . . . . . . . . . . Combat . | . . . . . . . . . . . . . . . . . . . Robot Hacks Applied . | . . . . . . . . . . . . . . . . . . . Relay Couplers Released 2 | . . . . . . . . . . . . . . . . . . 2 Machine Destruction 2 | . . . . . . . . . . . . . . . . . . 2 Fabnet Peak Effective % . | . . . . . . . . . . . . . . . . . . . Robots Rewired 10 | . . . . . . . . . . . . . . 10 . . . . Allies Hacked . | . . . . . . . . . . . . . . . . . . . Hacks Repelled . | . . . . . . . . . . . . . . . . . . . Allies | -11 -10 -10 -9 -9 -9 -8 -8 -7 -7 -7 -7 -6 -6 -6 -6 -6 -6 -5 -------- Run | Yrd Mat Min Mat Min Exi Min Mat Fac Low Low Zio Pro Fac Ext Cet Arc Hub Fac Total Allies 26 | . 1 . . 3 . . 1 1 . . . . 3 11 . . . 6 Largest Group 7 | . 1 1 1 4 4 4 2 2 2 1 1 1 4 7 5 3 1 4 Highest-Rated Group 301 | . 59 59 62 103 103 101 86 119 119 93 92 92 187 301 246 185 128 227 Highest-Rated Ally 140 | . 59 59 62 63 63 63 76 93 93 93 92 92 100 120 128 129 128 140 Total Orders 10 | . . . . . . . . 2 . . . . . 2 4 2 . . STAY 3 | . . . . . . . . 1 . . . . . 1 1 . . . ROAM 2 | . . . . . . . . . . . . . . . 1 1 . . FOLLOW 5 | . . . . . . . . 1 . . . . . 1 2 1 . . Ally Attacks 533 | . 10 10 13 10 3 45 15 38 7 . . . 9 139 68 21 52 93 Total Damage 14828 | . 164 155 165 120 3 599 295 978 290 . . . 588 3286 1513 898 1504 4270 Kills 121 | . 2 3 3 3 . 10 4 13 2 . . . 7 17 10 5 12 30 Allies Corrupted . | . . . . . . . . . . . . . . . . . . . Allies Melted 1 | . . . . . . . . . . . . . . 1 . . . . Intel | -11 -10 -10 -9 -9 -9 -8 -8 -7 -7 -7 -7 -6 -6 -6 -6 -6 -6 -5 ------- Run | Yrd Mat Min Mat Min Exi Min Mat Fac Low Low Zio Pro Fac Ext Cet Arc Hub Fac Active Infowar (turns) 6967 | 66 319 187 69 . . . 241 252 221 184 216 309 665 1681 217 356 439 1545 Optics 323 | . . . . . . . 241 82 . . . . . . . . . . Sensors 181 | . . . . . . . . . . 181 . . . . . . . . Terrain 16 | . 16 . . . . . . . . . . . . . . . . . Structural 463 | . 207 187 69 . . . . . . . . . . . . . . . Seismic 241 | 66 175 . . . . . . . . . . . . . . . . . Decoding 5428 | . . . . . . . . . . . 216 309 665 1681 217 356 439 1545 Jamming 394 | . . . . . . . . 170 221 3 . . . . . . . . Robot Analysis Total . | . . . . . . . . . . . . . . . . . . . Derelict Logs Recovered 7 | . . 1 . 1 . . . . . 2 2 1 . . . . . . Drone Launches . | . . . . . . . . . . . . . . . . . . . Drone Recoveries . | . . . . . . . . . . . . . . . . . . . Decoded 0b10 Intel 417 | . . . . . . . . . . . . . 82 84 6 9 57 179 Traps 16 | . . . . . . . . . . . . . 1 8 . . 2 5 Emergency Access 11 | . . . . . . . . . . . . . 1 2 . . 3 5 Items 261 | . . . . . . . . . . . . . 60 43 2 3 34 119 Machines 25 | . . . . . . . . . . . . . 5 5 3 3 4 5 Garrisons 2 | . . . . . . . . . . . . . . . . . . 2 Patrols 57 | . . . . . . . . . . . . . 10 24 . . 6 17 Reinforcements 12 | . . . . . . . . . . . . . . . . . 4 8 Guards 27 | . . . . . . . . . . . . . 4 1 . . 4 18 Exits 6 | . . . . . . . . . . . . . 1 1 1 3 . . Exploration | -11 -10 -10 -9 -9 -9 -8 -8 -7 -7 -7 -7 -6 -6 -6 -6 -6 -6 -5 ------------- Run | Yrd Mat Min Mat Min Exi Min Mat Fac Low Low Zio Pro Fac Ext Cet Arc Hub Fac Turns Passed 9707 | 83 319 187 209 330 229 465 312 787 567 434 573 309 665 1681 217 356 439 1545 Spaces Moved 9477 | 25 341 286 245 580 215 535 402 860 467 518 796 269 575 1098 179 201 432 1453 Core 67 | . 67 . . . . . . . . . . . . . . . . . Treads . | . . . . . . . . . . . . . . . . . . . Legs 25 | 25 . . . . . . . . . . . . . . . . . . Wheels . | . . . . . . . . . . . . . . . . . . . Hover 6989 | . . . . . . . 141 860 467 518 796 269 575 1098 179 201 432 1453 Flight 2396 | . 274 286 245 580 215 535 261 . . . . . . . . . . . Fastest Speed 37 | 120 37 37 37 37 37 37 37 42 42 42 42 42 42 51 51 51 52 48 Average Speed 45 | 120 39 37 37 37 37 37 40 42 42 42 44 42 42 51 51 60 54 52 Slowest Speed 172 | 120 60 37 37 117 37 37 110 102 42 46 46 42 106 51 51 116 172 120 Overloaded Moves . | . . . . . . . . . . . . . . . . . . . Propulsion Burnouts . | . . . . . . . . . . . . . . . . . . . Robots Hopped 25 | . 2 7 1 11 . 2 1 . . . 1 . . . . . . . Potential Cave-ins . | . . . . . . . . . . . . . . . . . . . Cave-ins Triggered . | . . . . . . . . . . . . . . . . . . . Exploration Rate (%) 48 | 3 51 62 22 66 60 77 26 23 71 59 73 45 15 83 56 81 25 32 Regions Visited 18 Branch Regions 12 Pre-discovered Areas 4 | . 1 . . . 1 . . . . . 2 . . . . . . . Known Exits Taken 6 | . . . 1 . . . . 1 . . . 1 1 . . 1 1 . Unknown Exits Taken 12 | 1 1 1 . 1 1 1 1 . 1 1 1 . . 1 1 . . . Scrap Searched 12 | . . . . 1 . 1 . . 2 3 4 1 . . . . . . Spaces Dug 55 | . 1 . 8 . . 19 1 3 . 1 . . 6 . 1 2 3 10 Terrain Destroyed 198 | . 8 8 8 9 . 54 1 24 21 1 . 1 6 37 1 2 6 11 Melee 26 | . . . . . . . 1 3 . 1 . . 6 . 1 2 3 9 Projectile 5 | . 3 . . . . . . . . . . . . . . . 2 . AOE 164 | . 5 8 8 9 . 54 . 21 21 . . 1 . 37 . . . . Terrain Rammed . | . . . . . . . . . . . . . . . . . . . Walls Destroyed . | . . . . . . . . . . . . . . . . . . . Machines Disabled . | . . . . . . . . . . . . . . . . . . . Actions | -11 -10 -10 -9 -9 -9 -8 -8 -7 -7 -7 -7 -6 -6 -6 -6 -6 -6 -5 --------- Run | Yrd Mat Min Mat Min Exi Min Mat Fac Low Low Zio Pro Fac Ext Cet Arc Hub Fac Total 14608 | 61 502 356 360 675 365 788 533 1267 837 732 1005 462 991 2207 302 421 625 2119 Wait 4514 | 25 112 62 96 91 142 245 98 355 361 201 194 192 396 980 120 185 149 510 Move 9413 | 24 336 271 242 560 214 530 399 859 466 517 793 268 574 1097 178 200 432 1453 Hop 22 | . 2 7 1 8 . 2 1 . . . 1 . . . . . . . Pick Up 37 | 2 4 3 4 2 1 . 1 2 1 4 4 . . . . 1 1 7 Fast Attach 87 | 1 6 2 2 1 1 . 5 10 2 3 6 . 6 3 1 8 5 25 Attach 35 | . 2 2 3 2 . . . 3 2 . 1 . 1 . . 1 8 10 Detach 44 | . 3 1 2 1 . . 1 8 2 . . . 2 1 . 3 10 10 Swap 36 | . 4 1 1 2 . 1 9 9 . . . . . . . 1 1 7 Drop 99 | . 15 3 5 2 6 . 6 5 2 6 4 . 5 3 1 7 8 21 Fire 140 | 9 18 4 4 6 . 6 2 9 1 . . 2 . 10 . . 5 64 Melee 71 | . . . . . 1 4 11 7 . 1 2 . 7 3 2 15 6 12 Ram . | . . . . . . . . . . . . . . . . . . . Kick . | . . . . . . . . . . . . . . . . . . . Crush . | . . . . . . . . . . . . . . . . . . . Escape Stasis . | . . . . . . . . . . . . . . . . . . . Rewire 110 | . . . . . . . . . . . . . . 110 . . . . Trap . | . . . . . . . . . . . . . . . . . . . Miscellaneous . | . . . . . . . . . . . . . . . . . . . Route ------- -11/Scrapyard -10/Materials (discovered 2 exits: *Mat / [*Min]) -10/Mines -9/Materials -9/Mines (discovered 3 exits: *Mat x2 / *Exi) -9/Exiles -8/Mines -8/Materials -7/Factory (discovered 4 exits: *Fac / *Sto / *Low x2) -7/Lower Caves -7/Lower Caves -7/Zion -6/Proximity Caves -6/Factory (discovered 3 exits: Fac x2 / *Ext) -6/Extension (discovered 3 exits: *Fac x2 / [*Cet]) -6/Cetus (discovered 2 exits: *Fac / [*Arc]) -6/Archives (discovered 3 exits: *Fac / *Hub x2) -6/Hub_04(d) -5/Factory (discovered 4 exits: [*Fac x2] / *Upp x2) History --------- Turn | Location | Event 13 | -11/Scrapyard | Discovered new exit (range 3) 84 | -11/Scrapyard | Entered Materials 247 | -10/Materials | Discovered new exit (range 3) 387 | -10/Materials | Discovered new exit (range 8) 403 | -10/Materials | Entered Mines 408 | -10/Mines | Learned Materials emergency access door positions 436 | -10/Mines | Build established: Scavenger-Mutant 459 | -10/Mines | Assembled infested the area 464 | -10/Mines | Assisted by a Guerilla fighting off Assembled 466 | -10/Mines | YI-UF0 nonchalantly dropped a Grenade Launcher on the ground 518 | -10/Mines | Core integrity fell below 50% 525 | -10/Mines | Core integrity fell below 20% 565 | -10/Mines | Discovered new exit (range 10) 590 | -10/Mines | Entered Materials 590 | -9/Materials | Evolved 2 slots: Utility x1, Weapon x1 725 | -9/Materials | Identified exit to Mines 799 | -9/Materials | Entered Mines 801 | -9/Mines | Met a Derelict bent on vengeance 924 | -9/Mines | A weapon hastily lodged in a ceiling crevice suddenly fell to the ground 986 | -9/Mines | Assisted by bots powering up and referring to "LRC-V3" 1005 | -9/Mines | Met a Derelict who couldn't figure out how to use a Trap Extractor 1055 | -9/Mines | Found a Scrap Suit stashed away for nefarious purposes 1056 | -9/Mines | Found Scrap Suit 1066 | -9/Mines | Discovered new exit (range 10) 1075 | -9/Mines | Deemed a non-threat by the Exiles lab entrance 1075 | -9/Mines | Discovered new exit (range 5) 1085 | -9/Mines | Discovered new exit (range 12) 1129 | -9/Mines | Entered Exiles 1129 | -9/Exiles | Accompanied by 3 allies 1139 | -9/Exiles | Met 8R-AWN 1144 | -9/Exiles | Met EX-HEX 1155 | -9/Exiles | Met EX-BIN 1159 | -9/Exiles | Aligned with FarCom system 1160 | -9/Exiles | Given EX-Vault access code 1169 | -9/Exiles | Opened EX-Vault 1172 | -9/Exiles | Found AWS/Autocannon 1174 | -9/Exiles | Found Longsword +1 1184 | -9/Exiles | Warned to stay clear of 0b10 Research branches 1191 | -9/Exiles | Exiles lab attacked by MAIN.C 1199 | -9/Exiles | Learned location of Zion (-7) 1210 | -9/Exiles | Discovered new exit (range 14) 1292 | -9/Exiles | Build established: Mutant 1357 | -9/Exiles | Attacked by the Exiles 1358 | -9/Exiles | Stole two prototypes: AWS/Autocannon, Longsword +1 1358 | -9/Exiles | Entered Mines 1358 | -8/Mines | Accompanied by 3 allies 1796 | -8/Mines | Discovered new exit (range 3) 1823 | -8/Mines | Entered Materials 1823 | -8/Materials | Evolved 2 slots: Utility x2 2111 | -8/Materials | Discovered new exit (range 19) 2135 | -8/Materials | Entered Factory 2135 | -7/Factory | Accompanied by 1 ally 2135 | -7/Factory | Evolved 2 slots: Propulsion x1, Utility x1 2136 | -7/Factory | Identified exit to Storage 2238 | -7/Factory | Garrison activated, responded to threat 2409 | -7/Factory | Fabricated O-24 Administrator (x1) 2507 | -7/Factory | Build established: Hacker-Mutant 2535 | -7/Factory | First assault squad dispatched 2543 | -7/Factory | Identified exit to Lower Caves 2560 | -7/Factory | Discovered new exit (range 5) 2841 | -7/Factory | Build established: Mutant 2922 | -7/Factory | Entered Lower Caves 2922 | -7/Lower Caves | Accompanied by 1 ally 3335 | -7/Lower Caves | Discovered new exit (range 15) 3489 | -7/Lower Caves | Entered another Lower Caves area 3621 | -7/Lower Caves | Encountered a Warlord checkpoint 3791 | -7/Lower Caves | Learned location of 1 exit from Factory 3795 | -7/Lower Caves | Encountered a Master Thief 3797 | -7/Lower Caves | Encountered a Master Thief 3800 | -7/Lower Caves | Encountered a Master Thief 3800 | -7/Lower Caves | Mak. Light Armor Plating stolen by Master Thief 3801 | -7/Lower Caves | Encountered a Master Thief 3801 | -7/Lower Caves | Mic. Nuclear Core stolen by Master Thief 3807 | -7/Lower Caves | Mak. Axe stolen by Master Thief 3831 | -7/Lower Caves | Hvy. Missile Launcher stolen by Master Thief 3882 | -7/Lower Caves | Discovered new exit (range 16) 3923 | -7/Lower Caves | Entered Zion 3997 | -7/Zion | Found CR-A16's Pointy Stick 4048 | -7/Zion | Learned location of Recycling (-7) 4087 | -7/Zion | Learned location of Quarantine (-3) 4335 | -7/Zion | Discovered new exit (range 16) 4402 | -7/Zion | Build established: Derelict-Mutant 4496 | -7/Zion | Entered Proximity Caves 4630 | -6/Proximity Caves | Identified exit to Factory 4805 | -6/Proximity Caves | Entered Factory 4805 | -6/Factory | Evolved 2 slots: Utility x2 4806 | -6/Factory | Identified exit to Extension 4807 | -6/Factory | Identified exit to Factory 5296 | -6/Factory | Build established: Derelict-Gladiator 5366 | -6/Factory | Fabricated G-50 Soldier? 5470 | -6/Factory | Entered Extension 5470 | -6/Extension | Accompanied by 3 allies 5478 | -6/Extension | Rescued a captive Derelict 5479 | -6/Extension | Rescued a captive Derelict 5480 | -6/Extension | Rescued a captive Derelict 5497 | -6/Extension | Rescued a captive Derelict 5499 | -6/Extension | Rescued a captive Derelict 5503 | -6/Extension | Rescued a captive Derelict 5504 | -6/Extension | Rescued a captive Derelict 5506 | -6/Extension | Rescued a captive Derelict 5507 | -6/Extension | Rescued a captive Derelict 5509 | -6/Extension | Rescued a captive Derelict 5511 | -6/Extension | Rescued a captive Derelict 5513 | -6/Extension | Rescued a captive Derelict 5521 | -6/Extension | Rescued a captive Derelict 5672 | -6/Extension | Disrupted transfer network 6122 | -6/Extension | Lost 3 allies 6630 | -6/Extension | Spotted B-75 Beast 6640 | -6/Extension | Spotted B-75 Beast 6645 | -6/Extension | Destroyed B-75 Beast 6669 | -6/Extension | Destroyed B-75 Beast 6683 | -6/Extension | Lost 6 allies 6889 | -6/Extension | Discovered new exit (range 15) 6889 | -6/Extension | Discovered exit to Factory (range 15) 7151 | -6/Extension | Entered Cetus 7151 | -6/Cetus | Accompanied by 4 allies 7170 | -6/Cetus | Spotted Cetus Guard 7170 | -6/Cetus | Spotted Cetus Guard 7171 | -6/Cetus | Spotted Cetus Guard 7239 | -6/Cetus | Discovered new exit (range 16) 7283 | -6/Cetus | Spotted Cetus Guard 7284 | -6/Cetus | Spotted Cetus Guard 7290 | -6/Cetus | Spotted Cetus Guard 7290 | -6/Cetus | Spotted Cetus Guard 7300 | -6/Cetus | Allies destroyed Cetus Guard 7302 | -6/Cetus | Allies destroyed Cetus Guard 7306 | -6/Cetus | Allies destroyed Cetus Guard 7313 | -6/Cetus | Allies destroyed Cetus Guard 7328 | -6/Cetus | Met Revision 17 7368 | -6/Cetus | Entered Archives 7368 | -6/Archives | Accompanied by 2 allies 7478 | -6/Archives | Identified exit to Hub_04(d) 7724 | -6/Archives | Entered Hub_04(d) 7896 | -6/Hub_04(d) | Discovered exit to Factory (range 15) 7927 | -6/Hub_04(d) | Destroyed 7 combat bots 7935 | -6/Hub_04(d) | Build established: Hacker-Mutant 8120 | -6/Hub_04(d) | Network Hub disabled 8126 | -6/Hub_04(d) | Spotted Lightning 8135 | -6/Hub_04(d) | Spotted Lightning 8137 | -6/Hub_04(d) | Spotted Lightning 8150 | -6/Hub_04(d) | System corruption reached 10% 8158 | -6/Hub_04(d) | Core integrity fell below 50% 8163 | -6/Hub_04(d) | Entered Factory 8163 | -5/Factory | Evolved 2 slots: Propulsion x2 8164 | -5/Factory | Identified exit to Upper Caves 8189 | -5/Factory | Lost 3 parts (1n1u1w) 9051 | -5/Factory | Build established: Hacker-Gunner 9189 | -5/Factory | Cargo convoy interrupted 9663 | -5/Factory | First assault squad dispatched 9687 | -5/Factory | Lost 3 allies 9697 | -5/Factory | Discovered new exit (range 9) 9698 | -5/Factory | Discovered new exit (range 15) 9708 | -5/Factory | Self-destructed Last Messages --------------- 09696_ U-05 Engineer lays Concrete. 09696_ Player 2 knocked back. 09697_ >> DECODED: Actuator Array location. 09697_ U-05 Engineer lays Concrete. 09697_ EXIT=FOUND 09697_ Penetrated by Slug. 09697_ Slug penetrates Door. 09697_ Slug penetrates Wall. 09698_ U-05 Engineer lays Concrete. 09698_ Acquired 68 matter. 09698_ EXIT=FOUND 09698_ K-01 Serf collects debris. 09699_ Antigrav System destroyed. 09700_ U-05 Engineer lays Concrete. 09700_ Critical hit (Burn: +27). 09700_ Imp. Gravmag System destroyed. 09700_ Penetrated by Slug. 09701_ U-05 Engineer lays Concrete. 09701_ Slug penetrates H-66 Slayer. 09702_ W-25 Informer sends out distress signal. Map ----- +----------------------------------------------------+ | #?????????????????????????? | | [ %!+?[?????!?????????????????? | | * ![%==[#?????????????????????????? | | #### !%= ==%*=%=#?????????????????????????? | | ???# %[ [=*%= ##????????????????????????? | | ???# * % [ #???? ???????????????????? | | ???# % #??? ???????????????????? | | ???# % #?? ??????????????????? | | ???#/* +? ??????????????????? | | ???#** % *! % # ??????????????????? | | ???# =%=! " ??????????????????? | | ???# [ %[= # ????????????????????? | | ???# ###########"H ###????????????????????????? | | ???# #????????##" %=!##?????????????????????????? | | ???# #?????????## [!H[#?????????????????????????? | | ####+########???# !%["#######???????????????????? | | #???# [=[H## #?????#?????????????? | | #???# =[ =! ### #?????????????? | | #???# ! %[%< !< #?????????????? | | #???# [!= ### ????????????????? | | #???#"###"## g #???????????????????? | | #?? ? ##"g###???????????????????? | | #?# """ ""### #?????????????????????? | | #?# """ ""### ###???????????????????? | | #?# """ S"# #???????????????????? | | #############? """# @ #???????????????????? | | ?????????????## """# > #???????????????????? | | ??????????????? "??# #???????????????????? | | ??????????????#== ???# #???????????????????? | | ####?????"????#] ???## ##???????????????????? | | #???""""???######????# #????????????????????? | | ### """""?????????????# #????????????????????? | | + """""?????????????# #????????????????????? | | ### #?????????# #????????????????????? | | #???? #?????????# #????????????????????? | | #??????###+##"T???????# #????????????????????? | | ######## ???????? w????????????????????? | | ! ???????? #????????????????????? | | ""??????????" g#????????????????????? | | A[ """?????????"gg#????????????????????? | | """?????????? ?????????????????????? | | """?????????????????????????????????? | | ####### ????????A?????????????????????? | | #??????? ????????????????????????????????? | | ###?????????##??????????????????????????????????? | | #???????????????????????????????????????????????? | | #????????????????/??????????????????????????????? | | #???????????????????????????????????????????????? | | #??????????????*/???????????????????????????????? | | #???????????????????????????????????????????????? | +----------------------------------------------------+ Best States ------------- Heat Dissipation 40 Energy Generation 25 Energy Capacity 300 Matter Stores 300 Matter Capacity 300 Sight Range 20 Robot Scan Range 15 Terrain Scan Range 16 Terrain Scan Density 10 Jamming Range 12 Additional Mass Support 9 Armor Coverage 225 Propulsion Shielding 66 Utility Shielding 66 Melee Speed Boost 20 Evasion (%) 62 Targeting Accuracy 20 Melee Accuracy 10 Recoil Reduction 2 Salvage Targeting 1 Offensive Hacking 24 Defensive Hacking 36 Authchip Count 1 Trap Extractor Capacity 6 Item Schematics ----------------- Lgt. Assault Rifle | -10/Materials | Hacked Gauss Rifle | -7/Zion | Archive Hyp. Gauss Rifle | -7/Zion | Archive Matter Filter | -7/Zion | Archive Imp. Thermal Generator | -7/Zion | Archive Gatling Laser | -7/Zion | Archive Coil Gun | -7/Zion | Archive Imp. Melee Analysis Suite | -7/Zion | Archive Imp. Corruption Screen | -7/Zion | Archive Hvy. Phase Cannon | -7/Zion | Archive Hvy. Ion Cannon | -7/Zion | Archive Lgt. Fission Core | -7/Zion | Archive Hrd. Heavy Armor Plating | -7/Zion | Archive Energy Well | -7/Zion | Archive Imp. Salvage Targeting Computer | -7/Zion | Archive Force Field | -7/Zion | Archive HERF Cannon | -7/Zion | Archive Robot Schematics ------------------ L-41 Fighter | -7/Zion | Archive A-02 Transporter | -7/Zion | Archive Y-54 Guardian | -7/Zion | Archive Fabricated ------------ O-24 Administrator | x1 | -7/Factory | Preloaded G-50 Soldier | x3 | -6/Factory | Preloaded Repaired ---------- Nothing Studied --------- Mni. Grenade Launcher | -8/Materials | Hacked Gravmag System | -5/Factory | Hacked Alien Tech Used ----------------- None Achievements -------------- None Challenges ------------ None Player 2 | -11 -10 -10 -9 -9 -9 -8 -8 -7 -7 -7 -7 -6 -6 -6 -6 -6 -6 -5 ---------- Run | Yrd Mat Min Mat Min Exi Min Mat Fac Low Low Zio Pro Fac Ext Cet Arc Hub Fac Slots Evolved 10 | . . 2 . . . 2 2 . . . . 2 . . . . 2 . Power 2 | . . 1 . . . . 1 . . . . . . . . . . . Propulsion 2 | . . 1 . . . . . . . . . 1 . . . . . . Utility 4 | . . . . . . 1 1 . . . . . . . . . 2 . Weapon 2 | . . . . . . 1 . . . . . 1 . . . . . . Parts Attached 151 | . 9 7 7 1 . 4 9 11 2 1 . . 5 24 2 9 20 40 Parts Lost 58 | . . 6 . . . . 1 2 . . . . . 1 1 3 24 20 Damage Taken 10464 | . 57 612 109 78 27 326 314 669 178 . . . 162 1383 336 700 2437 3076 Core 1078 | . . 130 17 17 . 50 31 100 20 . . . 6 60 25 . 231 391 Player 2/Cogmind (%) 73 | . . 59 100 100 . 73 100 95 100 . . . 100 43 56 . 85 76 Absorbed by Shields 445 | . . . . . . . . . . . . . . . . . . 445 Damage Inflicted 11565 | . 164 155 165 120 . 387 295 978 290 . . . 588 1750 577 809 1504 3783 Player 2/Cogmind (%) 54 | . 41 43 81 44 . 28 34 55 57 . . . 85 66 93 40 41 68 Combat Hostiles Destroyed 82 | . 2 3 3 3 . 6 3 9 2 . . . 7 12 . 4 7 21 Player 2/Cogmind (%) 62 | . 40 42 75 60 . 54 100 75 50 . . . 100 70 . 100 35 70 Game ------ Seed HypertargetingSpectralCloak Manual? 0 Play Time 01:44:56 Cumulative 1690.5 hours Start 2026.06.29 @ 10:16:17 End 2026.06.29 @ 12:21:03 Sessions 1 Manual Loads 0 Difficulty Rogue Special Mode AFD2020/Player2 Game No. 2787 Rogue 2780 Adventurer 0 Explorer 7 Win Type - Total 149 Types 40/17/58/3/3/5/21/1/1/0 Lore% 92 Gallery% 87 Achievement% 60 Wizard Run 0 Options --------- Layout 1 ASCII 0 Keyboard 1 Movement Numpad Keybinds 1 Fullscreen 2 Font 24/Smallcaps Map View 50x35 Zoom Use 0% Tactical HUD 1 Map Filters NONE Filters NONE Steam 1 RUN: 63b99d68-0dc6-4102-9a7d-92869cfa0f64